[Event "Dalheimers Hus Rapid Open"]
[Site "Dalheimers Hus, Slottsskogsgatan 12, Gothenburg, Sweden"]
[Date "2024.04.14"]
[Round "3.6"]
[White "Andreasson, Ingvar"]
[Black "Fors, Klas"]
[Result "1-0"]
[TimeControl "15 minutes + 5 seconds per move from move one."]
[WhiteFideId "1700294"]
[BlackFideId "1708872"]
[WhiteElo "2323"]
[BlackElo "2069"]

1. d4 {[%clk 00:14:58]} {[%emt 00:00:10]} d5 {[%clk 00:15:08]} {[%emt
00:00:03]} 2. Nf3 {[%clk 00:14:59]} {[%emt 00:00:04]} Nf6 {[%clk 00:15:10]}
{[%emt 00:00:02]} 3. Bf4 {[%clk 00:14:27]} {[%emt 00:00:38]} e6 {[%clk
00:14:25]} {[%emt 00:00:50]} 4. e3 {[%clk 00:14:05]} {[%emt 00:00:27]} Bd6
{[%clk 00:14:27]} {[%emt 00:00:03]} 5. Bg3 {[%clk 00:13:53]} {[%emt 00:00:17]}
O-O {[%clk 00:14:20]} {[%emt 00:00:13]} 6. Nbd2 {[%clk 00:13:47]} {[%emt
00:00:10]} c5 {[%clk 00:14:11]} {[%emt 00:00:14]} 7. c3 {[%clk 00:13:51]}
{[%emt 00:00:02]} Nc6 {[%clk 00:14:08]} {[%emt 00:00:08]} 8. Bb5 {[%clk
00:12:57]} {[%emt 00:00:58]} Ne7 {[%clk 00:13:45]} {[%emt 00:00:28]} 9. Bd3
{[%clk 00:12:39]} {[%emt 00:00:23]} b6 {[%clk 00:10:01]} {[%emt 00:03:50]} 10.
Ne5 {[%clk 00:10:54]} {[%emt 00:01:49]} Bb7 {[%clk 00:09:54]} {[%emt 00:00:13]}
11. Qb1 {[%clk 00:07:18]} {[%emt 00:03:40]} Ng6 {[%clk 00:08:25]} {[%emt
00:01:34]} 12. f4 {[%clk 00:07:11]} {[%emt 00:00:12]} cxd4 {[%clk 00:08:09]}
{[%emt 00:00:22]} 13. exd4 {[%clk 00:07:12]} {[%emt 00:00:03]} Nh5 {[%clk
00:07:53]} {[%emt 00:00:22]} 14. O-O {[%clk 00:06:25]} {[%emt 00:00:51]} a5
{[%clk 00:05:27]} {[%emt 00:02:31]} 15. Qe1 {[%clk 00:06:20]} {[%emt 00:00:10]}
Ba6 {[%clk 00:05:25]} {[%emt 00:00:08]} 16. Bxa6 {[%clk 00:05:50]} {[%emt
00:00:35]} Nxg3 {[%clk 00:05:24]} {[%emt 00:00:06]} 17. Qxg3 {[%clk 00:05:33]}
{[%emt 00:00:21]} Rxa6 {[%clk 00:05:12]} {[%emt 00:00:17]} 18. Qd3 {[%clk
00:05:27]} {[%emt 00:00:10]} b5 {[%clk 00:02:56]} {[%emt 00:02:22]} 19. a4
{[%clk 00:05:14]} {[%emt 00:00:19]} Ra8 {[%clk 00:02:06]} {[%emt 00:00:55]} 20.
axb5 {[%clk 00:05:11]} {[%emt 00:00:08]} Bxe5 {[%clk 00:01:54]} {[%emt
00:00:17]} 21. fxe5 {[%clk 00:03:57]} {[%emt 00:01:19]} Qb6 {[%clk 00:01:58]}
22. Rf2 {[%clk 00:02:59]} {[%emt 00:01:01]} Rab8 {[%clk 00:02:02]} {[%emt
00:00:02]} 23. Nb3 {[%clk 00:02:36]} {[%emt 00:00:28]} Qxb5 {[%clk 00:02:00]}
{[%emt 00:00:07]} 24. Qxb5 {[%clk 00:02:39]} {[%emt 00:00:03]} Rxb5 {[%clk
00:02:05]} 25. Nxa5 {[%clk 00:02:39]} {[%emt 00:00:05]} Ra8 {[%clk 00:02:04]}
{[%emt 00:00:06]} 26. b4 {[%clk 00:02:43]} Rc8 {[%clk 00:02:08]} 27. Rf3 {[%clk
00:02:23]} {[%emt 00:00:24]} Nh4 {[%clk 00:01:47]} {[%emt 00:00:27]} 28. Rd3
{[%clk 00:02:27]} Nf5 {[%clk 00:01:46]} {[%emt 00:00:06]} 29. Nb3 {[%clk
00:02:24]} {[%emt 00:00:08]} h5 {[%clk 00:01:47]} {[%emt 00:00:04]} 30. Nc5
{[%clk 00:02:22]} {[%emt 00:00:06]} h4 {[%clk 00:01:46]} {[%emt 00:00:06]} 31.
Ra7 {[%clk 00:02:19]} {[%emt 00:00:09]} Rbb8 {[%clk 00:01:21]} {[%emt
00:00:30]} 32. Rd1 {[%clk 00:02:06]} {[%emt 00:00:18]} Ne3 {[%clk 00:01:20]}
{[%emt 00:00:05]} 33. Rda1 {[%clk 00:02:09]} {[%emt 00:00:02]} Nc4 {[%clk
00:01:24]} {[%emt 00:00:02]} 34. Kf2 {[%clk 00:02:02]} {[%emt 00:00:11]} Nb6
{[%clk 00:01:09]} {[%emt 00:00:21]} 35. Kf3 {[%clk 00:01:49]} {[%emt 00:00:18]}
Nc4 {[%clk 00:01:00]} {[%emt 00:00:14]} 36. R1a2 {[%clk 00:01:43]} {[%emt
00:00:11]} Re8 {[%clk 00:00:55]} {[%emt 00:00:10]} 37. Kg4 {[%clk 00:01:33]}
{[%emt 00:00:15]} f6 {[%clk 00:00:54]} {[%emt 00:00:06]} 38. Kh5 {[%clk
00:01:04]} {[%emt 00:00:33]} fxe5 {[%clk 00:00:40]} {[%emt 00:00:20]} 39. Kg6
{[%clk 00:01:08]} Ne3 {[%clk 00:00:07]} {[%emt 00:00:38]} 40. Rxg7+ {[%clk
00:01:03]} {[%emt 00:00:09]} Kh8 {[%clk 00:00:11]} {[%emt 00:00:02]} 41. Rh7+
{[%clk 00:00:37]} {[%emt 00:00:30]} Kg8 {[%clk 00:00:15]} {[%emt 00:00:02]} 42.
Raa7 {[%clk 00:00:19]} {[%emt 00:00:23]} Nf5 {[%clk 00:00:18]} {[%emt
00:00:02]} 43. Nd7 {[%clk 00:00:23]} Ne7+ {[%clk 00:00:13]} {[%emt 00:00:09]}
44. Kf6 {[%clk 00:00:21]} {[%emt 00:00:07]} Kxh7 {[%clk 00:00:17]} {[%emt
00:00:02]} 45. Nxe5 {[%clk 00:00:20]} {[%emt 00:00:06]} Kh6 {[%clk 00:00:17]}
{[%emt 00:00:05]} 46. Rxe7 {[%clk 00:00:14]} {[%emt 00:00:11]} Rxe7 {[%clk
00:00:19]} {[%emt 00:00:04]} 47. Kxe7 {[%clk 00:00:18]} Rg8 {[%clk 00:00:22]}
{[%emt 00:00:02]} 48. b5 {[%clk 00:00:10]} {[%emt 00:00:13]} Rxg2 {[%clk
00:00:25]} {[%emt 00:00:02]} 49. b6 {[%clk 00:00:14]} {[%emt 00:00:02]} Ra2
{[%clk 00:00:29]} 50. Nc6 {[%clk 00:00:12]} {[%emt 00:00:06]} Ra6 {[%clk
00:00:28]} {[%emt 00:00:06]} 51. b7 {[%clk 00:00:16]} {[%emt 00:00:02]} 1-0

[Event "Dalheimers Hus Rapid Open"]
[Site "Dalheimers Hus, Slottsskogsgatan 12, Gothenburg, Sweden"]
[Date "2024.04.14"]
[Round "3.7"]
[White "Borvander, Tom"]
[Black "Rydstrom, Tom"]
[Result "0-1"]
[TimeControl "15 minutes + 5 seconds per move from move one."]
[BlackTitle "FM"]
[WhiteFideId "1707388"]
[BlackFideId "1714830"]
[WhiteElo "2081"]
[BlackElo "2313"]

1. d4 {[%clk 00:15:02]} {[%emt 00:00:08]} g6 {[%clk 00:14:58]} {[%emt
00:00:13]} 2. c4 {[%clk 00:15:04]} {[%emt 00:00:04]} Bg7 {[%clk 00:15:02]}
{[%emt 00:00:01]} 3. Nf3 {[%clk 00:15:05]} {[%emt 00:00:03]} d6 {[%clk
00:14:39]} {[%emt 00:00:29]} 4. g3 {[%clk 00:14:36]} {[%emt 00:00:33]} Nf6
{[%clk 00:14:26]} {[%emt 00:00:18]} 5. Nc3 {[%clk 00:14:38]} {[%emt 00:00:03]}
O-O {[%clk 00:14:23]} {[%emt 00:00:08]} 6. Bg2 {[%clk 00:14:42]} c6 {[%clk
00:14:26]} {[%emt 00:00:02]} 7. O-O {[%clk 00:14:38]} {[%emt 00:00:09]} Qc7
{[%clk 00:14:29]} {[%emt 00:00:02]} 8. h3 {[%clk 00:14:29]} {[%emt 00:00:14]}
e5 {[%clk 00:13:37]} {[%emt 00:00:56]} 9. e4 {[%clk 00:14:26]} {[%emt
00:00:09]} Re8 {[%clk 00:13:38]} {[%emt 00:00:04]} 10. Be3 {[%clk 00:14:04]}
{[%emt 00:00:26]} a6 {[%clk 00:12:41]} {[%emt 00:01:03]} 11. Rc1 {[%clk
00:13:51]} {[%emt 00:00:18]} Nbd7 {[%clk 00:12:29]} {[%emt 00:00:18]} 12. Qc2
{[%clk 00:13:00]} {[%emt 00:00:54]} b6 {[%clk 00:09:37]} {[%emt 00:02:58]} 13.
Rfd1 {[%clk 00:12:53]} {[%emt 00:00:12]} Bb7 {[%clk 00:09:41]} {[%emt
00:00:02]} 14. d5 {[%clk 00:12:34]} {[%emt 00:00:23]} c5 {[%clk 00:09:33]}
{[%emt 00:00:14]} 15. Qe2 {[%clk 00:09:41]} {[%emt 00:02:57]} h6 {[%clk
00:09:28]} {[%emt 00:00:10]} 16. Nh4 {[%clk 00:09:19]} {[%emt 00:00:26]} Nf8
{[%clk 00:09:12]} {[%emt 00:00:21]} 17. a3 {[%clk 00:08:52]} {[%emt 00:00:32]}
Bc8 {[%clk 00:09:06]} {[%emt 00:00:12]} 18. b4 {[%clk 00:08:46]} {[%emt
00:00:12]} g5 {[%clk 00:07:22]} {[%emt 00:01:48]} 19. Nf5 {[%clk 00:08:35]}
{[%emt 00:00:15]} Bxf5 {[%clk 00:07:11]} {[%emt 00:00:17]} 20. exf5 {[%clk
00:08:39]} e4 {[%clk 00:07:15]} {[%emt 00:00:01]} 21. bxc5 {[%clk 00:07:29]}
{[%emt 00:01:15]} bxc5 {[%clk 00:07:18]} {[%emt 00:00:02]} 22. Qc2 {[%clk
00:07:23]} {[%emt 00:00:11]} Rab8 {[%clk 00:06:44]} {[%emt 00:00:39]} 23. Bxe4
{[%clk 00:07:01]} {[%emt 00:00:26]} Qa5 {[%clk 00:03:33]} {[%emt 00:03:17]} 24.
Bg2 {[%clk 00:05:31]} {[%emt 00:01:35]} N8d7 {[%clk 00:03:22]} {[%emt
00:00:16]} 25. Bd2 {[%clk 00:04:19]} {[%emt 00:01:16]} Qc7 {[%clk 00:02:05]}
{[%emt 00:01:22]} 26. Rb1 {[%clk 00:04:07]} {[%emt 00:00:18]} Ne5 {[%clk
00:02:08]} {[%emt 00:00:03]} 27. Ne4 {[%clk 00:03:58]} {[%emt 00:00:12]} Nxe4
{[%clk 00:02:11]} {[%emt 00:00:03]} 28. Bxe4 {[%clk 00:04:00]} {[%emt
00:00:02]} Qd7 {[%clk 00:01:32]} {[%emt 00:00:44]} 29. Bg2 {[%clk 00:03:43]}
{[%emt 00:00:23]} Qc7 {[%clk 00:00:48]} {[%emt 00:00:49]} 30. Kh1 {[%clk
00:03:25]} {[%emt 00:00:22]} Nd7 {[%clk 00:00:36]} {[%emt 00:00:18]} 31. Re1
{[%clk 00:02:47]} {[%emt 00:00:43]} Kf8 {[%clk 00:00:25]} {[%emt 00:00:16]} 32.
Bc3 {[%clk 00:02:23]} {[%emt 00:00:29]} Rxb1 {[%clk 00:00:21]} {[%emt
00:00:09]} 33. Rxb1 {[%clk 00:02:25]} {[%emt 00:00:03]} Ne5 {[%clk 00:00:14]}
{[%emt 00:00:11]} 34. f4 {[%clk 00:02:04]} {[%emt 00:00:26]} gxf4 {[%clk
00:00:18]} {[%emt 00:00:02]} 35. gxf4 {[%clk 00:02:08]} {[%emt 00:00:01]} Nd7
{[%clk 00:00:20]} {[%emt 00:00:03]} 36. Bf3 {[%clk 00:01:58]} {[%emt 00:00:15]}
Qd8 {[%clk 00:00:22]} {[%emt 00:00:02]} 37. Bxg7+ {[%clk 00:01:48]} {[%emt
00:00:16]} Kxg7 {[%clk 00:00:27]} 38. Qc3+ {[%clk 00:01:03]} {[%emt 00:00:49]}
Qf6 {[%clk 00:00:25]} {[%emt 00:00:08]} 39. Qxf6+ {[%clk 00:00:36]} {[%emt
00:00:31]} Nxf6 {[%clk 00:00:22]} {[%emt 00:00:08]} 40. Rb6 {[%clk 00:00:39]}
{[%emt 00:00:02]} Re3 {[%clk 00:00:26]} 41. Kg2 {[%clk 00:00:42]} {[%emt
00:00:02]} Rxa3 {[%clk 00:00:27]} {[%emt 00:00:05]} 42. Rxd6 {[%clk 00:00:45]}
{[%emt 00:00:02]} Rc3 {[%clk 00:00:13]} {[%emt 00:00:19]} 43. Rxa6 {[%clk
00:00:44]} {[%emt 00:00:06]} Rxc4 {[%clk 00:00:17]} 44. Rc6 {[%clk 00:00:38]}
{[%emt 00:00:11]} Rc2+ {[%clk 00:00:18]} {[%emt 00:00:05]} 45. Kg3 {[%clk
00:00:41]} Rc3 {[%clk 00:00:17]} {[%emt 00:00:06]} 46. Kg2 {[%clk 00:00:33]}
{[%emt 00:00:12]} c4 {[%clk 00:00:22]} 47. d6 {[%clk 00:00:35]} {[%emt
00:00:03]} Rc2+ {[%clk 00:00:24]} {[%emt 00:00:03]} 48. Kg3 {[%clk 00:00:36]}
{[%emt 00:00:03]} c3 {[%clk 00:00:19]} {[%emt 00:00:11]} 49. d7 {[%clk
00:00:38]} {[%emt 00:00:02]} Nxd7 {[%clk 00:00:22]} {[%emt 00:00:03]} 50. Rc7
{[%clk 00:00:41]} {[%emt 00:00:02]} Nf6 {[%clk 00:00:24]} {[%emt 00:00:04]} 51.
Bd1 {[%clk 00:00:35]} {[%emt 00:00:10]} Rd2 {[%clk 00:00:25]} {[%emt 00:00:04]}
52. Bb3 {[%clk 00:00:38]} {[%emt 00:00:02]} Ne4+ {[%clk 00:00:13]} {[%emt
00:00:17]} 53. Kf3 {[%clk 00:00:38]} {[%emt 00:00:04]} Nd6 {[%clk 00:00:18]}
{[%emt 00:00:02]} 54. Rxc3 {[%clk 00:00:35]} {[%emt 00:00:07]} Nxf5 {[%clk
00:00:21]} {[%emt 00:00:02]} 55. Kg4 {[%clk 00:00:31]} {[%emt 00:00:08]} Nd6
{[%clk 00:00:22]} {[%emt 00:00:05]} 56. Rc7 {[%clk 00:00:25]} {[%emt 00:00:12]}
Rd3 {[%clk 00:00:25]} {[%emt 00:00:01]} 57. Bc2 {[%emt 00:00:08]} Rd2 {[%clk
00:00:19]} {[%emt 00:00:08]} 58. f5 {[%clk 00:00:19]} {[%emt 00:00:11]} Nb5
{[%clk 00:00:11]} {[%emt 00:00:13]} 59. Rc6 {[%clk 00:00:17]} {[%emt 00:00:06]}
Nd6 {[%clk 00:00:11]} {[%emt 00:00:06]} 60. Rc7 {[%clk 00:00:19]} {[%emt
00:00:03]} Kf6 {[%clk 00:00:14]} {[%emt 00:00:02]} 61. h4 {[%clk 00:00:16]}
{[%emt 00:00:08]} Rd4+ {[%clk 00:00:10]} {[%emt 00:00:10]} 62. Kg3 {[%clk
00:00:00]} {[%emt 00:00:17]} Ke5 {[%clk 00:15:05]} {[%emt 00:00:22]} 0-1

[Event "Dalheimers Hus Rapid Open"]
[Site "Dalheimers Hus, Slottsskogsgatan 12, Gothenburg, Sweden"]
[Date "2024.04.14"]
[Round "3.8"]
[White "Hamark, Jesper"]
[Black "Sandberg, Lucas"]
[Result "1/2-1/2"]
[TimeControl "15 minutes + 5 seconds per move from move one."]
[WhiteFideId "1704338"]
[BlackFideId "1773712"]
[WhiteElo "2301"]
[BlackElo "1926"]

1. e4 {[%clk 00:15:06]} {[%emt 00:00:03]} c5 {[%clk 00:15:10]} 2. Nc3 {[%clk
00:15:10]} {[%emt 00:00:01]} Nc6 {[%clk 00:15:14]} 3. Bb5 {[%clk 00:15:13]}
{[%emt 00:00:01]} Nd4 {[%clk 00:15:17]} {[%emt 00:00:01]} 4. Nf3 {[%clk
00:15:17]} a6 {[%clk 00:15:21]} {[%emt 00:00:02]} 5. Bd3 {[%clk 00:15:21]}
{[%emt 00:00:01]} e6 {[%clk 00:15:06]} {[%emt 00:00:21]} 6. O-O {[%clk
00:15:17]} {[%emt 00:00:07]} Nc6 {[%clk 00:15:10]} {[%emt 00:00:02]} 7. Nd5
{[%clk 00:13:53]} {[%emt 00:01:29]} d6 {[%clk 00:13:50]} {[%emt 00:01:25]} 8.
Ne3 {[%clk 00:13:56]} {[%emt 00:00:02]} Nf6 {[%clk 00:13:53]} {[%emt 00:00:03]}
9. c3 {[%clk 00:13:59]} d5 {[%clk 00:13:18]} {[%emt 00:00:39]} 10. exd5 {[%clk
00:13:26]} {[%emt 00:00:38]} exd5 {[%clk 00:13:20]} {[%emt 00:00:03]} 11. Re1
{[%clk 00:13:19]} {[%emt 00:00:12]} Be7 {[%clk 00:12:06]} {[%emt 00:01:20]} 12.
Nf5 {[%clk 00:13:19]} {[%emt 00:00:05]} Bxf5 {[%clk 00:12:08]} {[%emt
00:00:03]} 13. Bxf5 {[%clk 00:13:23]} O-O {[%clk 00:11:48]} {[%emt 00:00:25]}
14. d4 {[%clk 00:13:19]} {[%emt 00:00:08]} h6 {[%clk 00:11:23]} {[%emt
00:00:31]} 15. Be3 {[%clk 00:10:51]} {[%emt 00:02:33]} c4 {[%clk 00:10:27]}
{[%emt 00:01:02]} 16. Qc1 {[%clk 00:10:04]} {[%emt 00:00:51]} Re8 {[%clk
00:10:02]} {[%emt 00:00:30]} 17. g3 {[%clk 00:08:31]} {[%emt 00:01:39]} Bf8
{[%clk 00:09:30]} {[%emt 00:00:36]} 18. Qc2 {[%clk 00:08:32]} {[%emt 00:00:04]}
b5 {[%clk 00:09:22]} {[%emt 00:00:14]} 19. a3 {[%clk 00:08:26]} {[%emt
00:00:10]} Qc7 {[%clk 00:08:54]} {[%emt 00:00:33]} 20. Nh4 {[%clk 00:06:31]}
{[%emt 00:01:59]} a5 {[%clk 00:07:55]} {[%emt 00:01:05]} 21. Bh3 {[%clk
00:06:05]} {[%emt 00:00:31]} b4 {[%clk 00:06:22]} {[%emt 00:01:39]} 22. axb4
{[%clk 00:06:07]} {[%emt 00:00:02]} axb4 {[%clk 00:06:25]} {[%emt 00:00:02]} 23.
Rxa8 {[%clk 00:06:11]} {[%emt 00:00:02]} Rxa8 {[%clk 00:06:28]} {[%emt
00:00:02]} 24. Bg2 {[%clk 00:05:28]} {[%emt 00:00:46]} bxc3 {[%clk 00:05:19]}
{[%emt 00:01:17]} 25. bxc3 {[%clk 00:05:30]} {[%emt 00:00:02]} Ra3 {[%clk
00:05:10]} {[%emt 00:00:14]} 26. Bc1 {[%clk 00:05:10]} {[%emt 00:00:25]} Rb3
{[%clk 00:05:06]} {[%emt 00:00:09]} 27. Bd2 {[%clk 00:05:13]} Qb6 {[%clk
00:04:46]} {[%emt 00:00:26]} 28. Qf5 {[%clk 00:04:34]} {[%emt 00:00:44]} Ne7
{[%clk 00:04:22]} {[%emt 00:00:29]} 29. Qe5 {[%clk 00:04:30]} {[%emt 00:00:09]}
Rb2 {[%clk 00:03:44]} {[%emt 00:00:44]} 30. Qe3 {[%clk 00:03:43]} {[%emt
00:00:52]} Qb3 {[%clk 00:03:25]} {[%emt 00:00:23]} 31. Rc1 {[%clk 00:02:33]}
{[%emt 00:01:14]} Qa2 {[%clk 00:02:50]} {[%emt 00:00:41]} 32. Be1 {[%clk
00:01:58]} {[%emt 00:00:40]} Nc6 {[%clk 00:02:27]} {[%emt 00:00:28]} 33. Bf3
{[%clk 00:01:23]} {[%emt 00:00:39]} Na5 {[%clk 00:01:32]} {[%emt 00:01:01]} 34.
Nf5 {[%clk 00:01:26]} {[%emt 00:00:02]} Nb3 {[%clk 00:01:32]} {[%emt 00:00:05]}
35. Rd1 {[%clk 00:01:28]} {[%emt 00:00:03]} Rb1 {[%clk 00:01:07]} {[%emt
00:00:30]} 36. Ne7+ {[%clk 00:00:40]} {[%emt 00:00:53]} Bxe7 {[%clk 00:01:10]}
{[%emt 00:00:02]} 37. Qxe7 {[%clk 00:00:44]} Rxd1 {[%clk 00:01:12]} {[%emt
00:00:03]} 38. Bxd1 {[%clk 00:00:48]} Qb1 {[%clk 00:01:12]} {[%emt 00:00:05]}
39. Bf3 {[%clk 00:00:52]} Nd2 {[%clk 00:01:08]} {[%emt 00:00:11]} 40. Kg2
{[%clk 00:00:29]} {[%emt 00:00:27]} Nde4 {[%clk 00:01:09]} {[%emt 00:00:05]} 41.
Bxe4 {[%clk 00:00:26]} {[%emt 00:00:07]} Nxe4 {[%clk 00:00:52]} {[%emt
00:00:22]} 42. Qe8+ {[%clk 00:00:19]} {[%emt 00:00:12]} Kh7 {[%clk 00:00:55]}
{[%emt 00:00:02]} 43. Qxf7 {[%clk 00:00:22]} {[%emt 00:00:01]} Qxe1 {[%clk
00:00:56]} {[%emt 00:00:05]} 44. Qf5+ {[%clk 00:00:26]} {[%emt 00:00:01]} Kh8
{[%clk 00:00:56]} {[%emt 00:00:05]} 45. Qf8+ {[%clk 00:00:30]} {[%emt
00:00:02]} Kh7 {[%clk 00:00:53]} {[%emt 00:00:07]} 46. Qf5+ {[%clk 00:00:33]}
{[%emt 00:00:01]} Kh8 {[%clk 00:00:58]} 47. Qf8+ {[%clk 00:00:37]} {[%emt
00:00:01]} Kh7 {[%clk 00:01:02]} {[%emt 00:00:01]} 48. Qf5+ {[%clk 00:00:35]}
1/2-1/2

[Event "Dalheimers Hus Rapid Open"]
[Site "Dalheimers Hus, Slottsskogsgatan 12, Gothenburg, Sweden"]
[Date "2024.04.14"]
[Round "3.9"]
[White "Ruonala, Robert"]
[Black "Svensson, Bengt"]
[Result "0-1"]
[TimeControl "15 minutes + 5 seconds per move from move one."]
[BlackTitle "IM"]
[WhiteFideId "1724703"]
[BlackFideId "1700200"]
[WhiteElo "2044"]
[BlackElo "2281"]

1. e4 {[%clk 00:15:08]} {[%emt 00:00:02]} c5 {[%clk 00:15:07]} {[%emt
00:00:03]} 2. Nf3 {[%clk 00:15:11]} d6 {[%clk 00:15:09]} {[%emt 00:00:05]} 3.
d4 {[%clk 00:15:15]} cxd4 {[%clk 00:15:12]} {[%emt 00:00:02]} 4. c3 {[%clk
00:15:16]} {[%emt 00:00:05]} dxc3 {[%clk 00:14:23]} {[%emt 00:00:54]} 5. Nxc3
{[%clk 00:15:19]} {[%emt 00:00:02]} Nc6 {[%clk 00:14:25]} {[%emt 00:00:03]} 6.
Bc4 {[%clk 00:15:19]} {[%emt 00:00:04]} a6 {[%clk 00:14:07]} {[%emt 00:00:23]}
7. O-O {[%clk 00:15:16]} {[%emt 00:00:07]} Nf6 {[%clk 00:13:34]} {[%emt
00:00:39]} 8. Qe2 {[%clk 00:14:32]} {[%emt 00:00:48]} Bg4 {[%clk 00:12:53]}
{[%emt 00:00:46]} 9. Rd1 {[%clk 00:14:23]} {[%emt 00:00:15]} e6 {[%clk
00:12:24]} {[%emt 00:00:34]} 10. Bf4 {[%clk 00:14:02]} {[%emt 00:00:25]} Qb8
{[%clk 00:11:51]} {[%emt 00:00:39]} 11. h3 {[%clk 00:12:22]} {[%emt 00:01:45]}
Bxf3 {[%clk 00:11:50]} {[%emt 00:00:06]} 12. gxf3 {[%clk 00:11:35]} {[%emt
00:00:52]} Be7 {[%clk 00:11:39]} {[%emt 00:00:16]} 13. Kh1 {[%clk 00:11:14]}
{[%emt 00:00:26]} O-O {[%clk 00:11:25]} {[%emt 00:00:19]} 14. Rg1 {[%clk
00:10:39]} {[%emt 00:00:39]} Ne5 {[%clk 00:10:45]} {[%emt 00:00:46]} 15. Bb3
{[%clk 00:09:33]} {[%emt 00:01:10]} b5 {[%clk 00:10:18]} {[%emt 00:00:33]} 16.
Rg5 {[%clk 00:06:21]} {[%emt 00:03:16]} Kh8 {[%clk 00:09:00]} {[%emt 00:01:23]}
17. Rag1 {[%clk 00:06:20]} {[%emt 00:00:07]} Rg8 {[%clk 00:08:41]} {[%emt
00:00:24]} 18. Nd1 {[%clk 00:04:34]} {[%emt 00:01:51]} Qb7 {[%clk 00:07:27]}
{[%emt 00:01:20]} 19. Ne3 {[%clk 00:03:33]} {[%emt 00:01:05]} Nxe4 {[%clk
00:06:48]} {[%emt 00:00:44]} 20. R5g2 {[%clk 00:00:13]} {[%emt 00:03:25]} Nf6
{[%clk 00:06:19]} 0-1